bitfinex-derivatives/quotes_BTCF0:USTF0_20240830
["timestamp","ask_amount","ask_price","bid_price","bid_amount"]
[1725047468236,0.00616779,58996.0,58995.0,0.446557]
[1725047469641,0.00316779,58996.0,58995.0,0.446557]
[1725047469841,0.00516779,58996.0,58995.0,0.447557]
[1725047470548,0.00416779,58996.0,58995.0,0.447557]
[1725047470953,0.00216779,58996.0,58995.0,0.446557]
[1725047471250,0.00416779,58996.0,58995.0,0.447557]
[1725047472346,0.00416779,58996.0,58995.0,0.532314]
[1725047472746,0.00416779,58996.0,58995.0,1.040834]
[1725047472947,0.24,59012.0,58995.0,1.040834]
[1725047472948,0.06080834,59017.0,58995.0,1.71132]
[1725047473152,0.6656,59025.0,58995.0,1.71132]
[1725047473153,0.6656,59025.0,59014.0,0.3608]
[1725047473453,0.084721,59020.0,59017.0,0.084725]
[1725047473648,0.51837185,59025.0,59014.0,0.3608]
[1725047473847,0.51862554,59025.0,59021.0,0.3608]
[1725047474047,0.10333954,59025.0,59021.0,0.3608]
[1725047474345,0.01017028,59025.0,59021.0,0.3608]
[1725047474753,0.01017028,59025.0,59021.0,0.445519]
[1725047474945,0.01017028,59025.0,59021.0,0.3608]
[1725047474946,0.09488428,59025.0,59021.0,0.3608]
[1725047475254,0.24,59024.0,59014.0,0.36105422]
[1725047475457,0.324728,59015.0,59014.0,0.00025422]
[1725047475645,0.24,59015.0,59014.0,0.00025422]
[1725047475851,0.74836,59015.0,59014.0,0.00025422]
[1725047476151,0.833088,59015.0,59014.0,0.00025422]
[1725047476349,0.24,59015.0,59014.0,0.00025422]
[1725047476751,0.324728,59015.0,59014.0,0.00025422]
[1725047476950,0.324728,59015.0,59014.0,0.00125422]
[1725047477452,1.44321573,59015.0,59014.0,0.00125422]
[1725047477845,1.50401259,59015.0,59014.0,0.00125422]
[1725047478164,1.50401259,59015.0,59014.0,0.00225422]
[1725047478346,1.50401259,59015.0,58997.0,0.12]
[1725047478347,0.084749,59000.0,58999.0,0.3608]
[1725047478545,0.24,59000.0,58996.0,0.084755]
[1725047478740,0.3608,59006.0,58998.0,0.3608]
[1725047478741,0.8608,59006.0,58998.0,0.3608]
[1725047478950,0.3608,59006.0,58998.0,0.3608]
[1725047479346,0.3608,59006.0,59002.0,0.084746]
[1725047479549,0.3608,59006.0,59003.0,0.084745]
[1725047479752,0.36873519,59006.0,59003.0,0.084744]
[1725047480155,0.36873519,59006.0,59004.0,0.3608]
[1725047480156,0.00793519,59006.0,59004.0,0.3608]
[1725047480359,0.00025422,59008.0,59007.0,0.084739]
[1725047480655,0.06912067,59008.0,59007.0,0.07626511]
[1725047480845,0.06105524,59008.0,59007.0,0.07626511]
[1725047481453,0.06105524,59008.0,59005.0,0.084741]
[1725047481757,0.05980102,59007.0,59005.0,0.084741]
[1725047481946,0.05980102,59006.0,59005.0,0.084741]
[1725047482144,0.06180102,59006.0,59005.0,0.084741]
[1725047482348,0.06180102,59006.0,59004.0,0.3618]
[1725047482549,0.002,59006.0,59004.0,0.3618]
[1725047482750,0.002,59006.0,59005.0,0.084742]
[1725047483062,0.002,59007.0,59006.0,0.084741]
[1725047483858,0.00225422,59008.0,59006.0,0.084741]
[1725047484053,0.00225422,59008.0,59007.0,0.084739]
[1725047484352,0.00025422,59008.0,59007.0,0.084739]
[1725047484659,0.06105379,59008.0,59007.0,0.084739]
[1725047485049,0.06105379,59008.0,59007.0,0.409478]
[1725047485455,0.06405379,59008.0,59007.0,0.410478]
[1725047486154,0.94453715,59023.0,59022.0,0.084718]
[1725047486155,0.27627798,59023.0,59022.0,0.084718]
[1725047486553,0.00790083,59023.0,59022.0,0.084718]
[1725047486749,0.084711,59027.0,59023.0,0.084716]
[1725047487056,0.09276045,59027.0,59026.0,0.3608]
[1725047487254,0.00804945,59027.0,59026.0,0.3608]
[1725047487456,0.08495969,59031.0,59027.0,0.08471]
[1725047487653,0.08495969,59031.0,59026.0,0.3608]
[1725047487654,0.08495969,59031.0,59028.0,0.084709]
[1725047487853,0.00025369,59031.0,59029.0,0.084708]
[1725047488063,0.002,59027.0,59026.0,0.3608]
[1725047488263,0.002,59027.0,59026.0,0.445512]
[1725047488753,0.0103359,59031.0,59027.0,0.085711]
[1725047488959,0.0103359,59031.0,59029.0,0.084707]
[1725047489156,0.0113359,59031.0,59029.0,0.085707]
[1725047489362,0.0113359,59031.0,59030.0,0.084706]
[1725047489753,0.0103359,59031.0,59030.0,0.084706]
[1725047489959,0.0113359,59031.0,59030.0,0.084706]
[1725047490156,0.0093359,59031.0,59030.0,0.084706]
[1725047490355,0.5175359,59031.0,59028.0,0.3608]
[1725047490657,0.0093359,59031.0,59027.0,0.001]
[1725047490956,0.084709,59028.0,59027.0,0.001]
[1725047491259,0.0093359,59031.0,59029.0,0.084708]
[1725047491555,0.0093359,59031.0,59030.0,0.3608]
[1725047491753,0.0940409,59031.0,59030.0,0.3608]
[1725047491954,0.6022409,59031.0,59030.0,0.3608]
[1725047492159,0.0093359,59031.0,59030.0,0.3608]
[1725047493563,0.0940409,59031.0,59030.0,0.001]
[1725047493752,0.6583409,59031.0,59030.0,0.002]
[1725047494455,0.1501409,59031.0,59030.0,0.002]
[1725047494859,0.6583409,59031.0,59030.0,0.002]
[1725047495055,1.2583409,59031.0,59030.0,0.002]
[1725047495255,1.40383273,59031.0,59030.0,0.002]
[1725047495453,0.084715,59024.0,59023.0,0.3608]
[1725047495667,0.324715,59024.0,59023.0,0.3608]
[1725047495859,1.56335216,59024.0,59023.0,0.23616208]
[1725047496056,1.52335216,59024.0,59023.0,0.23616208]
[1725047496359,0.92335216,59024.0,59023.0,0.23616208]
[1725047496764,0.92435216,59024.0,59023.0,0.23716208]
[1725047497066,1.52435216,59024.0,59023.0,0.23816208]
[1725047497265,0.92435216,59024.0,59023.0,0.23816208]
[1725047497469,1.52435216,59024.0,59023.0,0.23816208]
[1725047497763,1.52435216,59024.0,59023.0,0.002]
[1725047497981,1.60906716,59024.0,59023.0,0.002]
[1725047498167,0.5,59023.0,59007.0,0.057]
[1725047498365,0.2,59013.0,59007.0,0.084739]
[1725047498572,0.13035716,59012.0,59007.0,0.084739]
[1725047498870,0.21509216,59011.0,59008.0,0.084738]
[1725047499070,0.13035716,59010.0,59008.0,0.084738]
[1725047499259,0.13035716,59009.0,59008.0,0.084738]
[1725047499457,0.13035716,59009.0,59006.0,0.08474]
[1725047499655,0.13035716,59008.0,59007.0,0.001]
[1725047500061,0.13035716,59008.0,59007.0,0.085739]
[1725047500268,0.12935716,59008.0,59007.0,0.085739]
[1725047500772,0.13135716,59008.0,59007.0,0.001]
[1725047500958,0.13135716,59008.0,59007.0,1.363617]
[1725047501477,0.13035716,59008.0,59007.0,1.363617]
[1725047502171,0.13035716,59008.0,59007.0,0.170478]
[1725047502671,0.13435716,59008.0,59007.0,0.171478]
[1725047502865,0.006,59008.0,59007.0,0.171478]
[1725047503966,0.006,59008.0,59007.0,0.086739]
[1725047506463,0.090738,59008.0,59007.0,0.002]
[1725047508374,0.175476,59008.0,59007.0,0.002]
[1725047508873,0.175476,59008.0,59003.0,0.00025422]
[1725047508874,0.084744,59004.0,59003.0,0.00025422]
[1725047509081,0.084744,59004.0,58987.0,0.0603]
[1725047509082,0.08476,58993.0,58987.0,0.0603]
[1725047509261,0.24,58988.0,58984.0,0.0592]
[1725047509575,0.324767,58988.0,58984.0,0.0592]
[1725047510371,0.084771,58986.0,58983.0,0.3608]
[1725047510563,0.242,58988.0,58983.0,0.3608]
[1725047511163,0.084772,58985.0,58983.0,0.3608]
[1725047511871,0.084775,58983.0,58980.0,0.00025422]
[1725047512078,0.084777,58981.0,58980.0,0.00025422]
[1725047512467,0.083777,58981.0,58980.0,0.00025422]
[1725047513364,0.083777,58981.0,58980.0,0.00225422]
[1725047513873,0.00804573,58985.0,58980.0,0.00225422]
[1725047514075,0.14576,58990.0,58984.0,0.324772]
[1725047514274,0.14576,58990.0,58980.0,0.36305422]
[1725047514275,0.3628,58991.0,58986.0,0.3608]
[1725047514572,0.36882005,58991.0,58988.0,0.084765]
[1725047514775,0.00802005,58991.0,58986.0,0.3608]
[1725047514972,0.00891751,58992.0,58986.0,0.3608]
[1725047514973,0.09367851,58992.0,58986.0,0.3608]
[1725047515375,0.24,58988.0,58986.0,0.3608]
[1725047515575,0.24,58988.0,58982.0,1.746974]
[1725047516081,0.24,58985.0,58982.0,0.084774]
[1725047516982,0.084777,58981.0,58980.0,0.00125422]
[1725047517280,0.409554,58981.0,58980.0,0.00025422]
[1725047517467,0.409554,58981.0,58967.0,0.507197]
[1725047517468,0.084789,58973.0,58967.0,0.3608]
[1725047517672,0.14576,58972.0,58967.0,0.3608]
[1725047517867,0.50656,58976.0,58967.0,0.3608]
[1725047518082,0.50656,58976.0,58971.0,0.08479]
[1725047518266,0.591344,58976.0,58971.0,0.08479]
[1725047518474,0.084786,58975.0,58968.0,0.00025422]
[1725047519276,0.24,58974.0,58969.0,0.084793]
[1725047520171,0.084788,58973.0,58969.0,0.084793]
[1725047520372,0.084794,58969.0,58968.0,0.00025422]
[1725047521171,0.3858,58970.0,58968.0,0.00025422]
[1725047521375,0.1458,58972.0,58968.0,0.00025422]
[1725047521574,0.1458,58972.0,58970.0,0.3608]
[1725047522076,0.084794,58969.0,58968.0,0.00025422]
[1725047522278,0.324794,58969.0,58968.0,0.00025422]
[1725047522974,1.521348,58969.0,58968.0,0.00025422]
[1725047523180,1.521348,58969.0,58946.0,0.3608]
[1725047523181,1.35176,58969.0,58946.0,0.3608]
[1725047523380,0.084826,58947.0,58946.0,0.3608]
[1725047523588,0.24,58957.0,58946.0,0.3608]
[1725047523776,0.1458,58957.0,58947.0,0.1183]
[1725047523975,0.1458,58956.0,58953.0,0.3608]
[1725047524175,0.5,58968.0,58953.0,0.685616]
[1725047524373,0.24,58963.0,58961.0,0.3608]
[1725047524576,0.24,58963.0,58961.0,0.3598]
[1725047524780,0.5088,58962.0,58949.0,0.32885447]
[1725047524977,0.24,58957.0,58949.0,0.32885447]
[1725047525190,0.14684,58957.0,58956.0,0.084813]
[1725047525681,0.38684,58957.0,58953.0,0.3608]
[1725047526081,0.38684,58957.0,58953.0,0.446617]
[1725047526082,0.012,58956.0,58953.0,0.446617]
[1725047526583,0.40887905,58957.0,58956.0,0.001]
[1725047526782,1.36337005,58957.0,58949.0,0.00025447]
[1725047526986,0.324821,58950.0,58949.0,0.00025447]
[1725047527180,0.323821,58950.0,58949.0,0.00025447]
[1725047527382,0.6,58950.0,58949.0,0.00025447]
[1725047527580,0.14688,58950.0,58949.0,0.00025447]
[1725047528000,0.14688,58950.0,58949.0,0.08607747]
[1725047528277,0.14688,58950.0,58949.0,0.00125447]
[1725047528978,0.14588,58950.0,58949.0,0.00125447]
[1725047529687,0.013,58950.0,58949.0,0.00125447]
[1725047529985,0.16988,58950.0,58949.0,0.00125447]
[1725047530182,0.16988,58950.0,58920.0,0.3608]
[1725047530183,1.9096,58950.0,58920.0,0.3608]
[1725047530383,1.9096,58950.0,58910.0,0.3286]
[1725047530384,0.2,58921.0,58910.0,0.5093]
[1725047530590,0.3608,58928.0,58910.0,0.5093]
[1725047530591,0.2,58911.0,58910.0,0.265579]
[1725047530976,0.2,58911.0,58910.0,0.626379]
[1725047531385,0.00025447,58916.0,58915.0,0.084872]
[1725047531695,0.20025447,58916.0,58915.0,0.445672]
[1725047532288,0.20025447,58916.0,58915.0,0.433672]
[1725047532999,0.20025447,58916.0,58915.0,0.3608]
[1725047533580,0.20025447,58916.0,58915.0,0.445672]
[1725047534190,0.24025447,58916.0,58915.0,0.3608]
[1725047534486,0.14817447,58916.0,58915.0,0.445672]
[1725047534783,0.00125447,58916.0,58915.0,0.445672]
[1725047535782,0.24125447,58916.0,58915.0,0.3608]
[1725047535988,0.24125447,58916.0,58910.0,0.3608]
[1725047535989,0.084876,58913.0,58910.0,0.3608]
[1725047536186,0.24,58911.0,58910.0,0.3608]
[1725047536391,0.24,58911.0,58910.0,0.445678]
[1725047536594,0.00125447,58916.0,58915.0,0.084872]
[1725047536796,0.00125447,58916.0,58915.0,0.445672]
[1725047537195,0.00025447,58916.0,58915.0,0.445672]
[1725047537983,0.00125447,58916.0,58915.0,0.445672]
[1725047539599,0.00625447,58916.0,58915.0,0.505572]
[1725047540190,0.24,58930.0,58929.0,0.084852]
[1725047540495,0.24,58930.0,58927.0,0.3608]
[1725047540694,0.24,58928.0,58927.0,0.3608]
[1725047540886,0.00808607,58933.0,58927.0,0.3608]
[1725047540887,0.24,58931.0,58927.0,0.3608]
[1725047541086,0.24,58931.0,58930.0,0.08485]
[1725047541489,0.084853,58928.0,58927.0,0.3608]
[1725047541697,0.324853,58928.0,58925.0,0.00025447]
[1725047541997,0.00228001,58934.0,58933.0,0.084846]
[1725047542297,0.00025447,58936.0,58935.0,0.084843]
[1725047542502,0.00025447,58936.0,58935.0,0.445643]
[1725047543014,0.00025447,58936.0,58935.0,0.444643]
[1725047544403,0.00325447,58936.0,58935.0,0.444643]
[1725047544598,0.00325447,58936.0,58935.0,0.529486]
[1725047544995,0.00325447,58936.0,58935.0,0.444643]
[1725047545797,0.00725447,58936.0,58935.0,0.445643]
[1725047546598,0.00725447,58936.0,58935.0,0.530486]
[1725047547300,0.00725447,58936.0,58935.0,0.615329]
[1725047547508,0.00725447,58936.0,58935.0,0.530486]
[1725047548393,0.00725447,58936.0,58935.0,0.445643]
[1725047548799,0.09209647,58936.0,58935.0,0.3618]
[1725047549802,0.00725447,58936.0,58935.0,0.446643]
[1725047550007,0.00725447,58936.0,58935.0,0.531486]
[1725047550301,0.00725447,58936.0,58935.0,0.446643]
[1725047550597,0.00725447,58936.0,58935.0,0.3618]
[1725047550804,0.68597847,58936.0,58935.0,0.3618]
[1725047551000,0.83293847,58936.0,58935.0,0.3618]
[1725047551196,0.74809647,58936.0,58935.0,0.3618]
[1725047551398,0.75607047,58936.0,58935.0,0.3618]
[1725047551600,1.11687047,58936.0,58935.0,0.001]
[1725047551905,1.6898946,58936.0,58925.0,0.00025447]
[1725047552093,0.084856,58926.0,58925.0,0.00025447]
[1725047552291,0.24,58927.0,58925.0,0.00025447]
[1725047552697,0.239,58927.0,58925.0,0.00025447]
[1725047553607,0.001,58927.0,58925.0,0.00025447]
[1725047553804,0.084875,58913.0,58908.0,0.3608]
[1725047554006,0.084889,58904.0,58892.0,0.3608]
[1725047554306,0.67756,58912.0,58897.0,0.3608]
[1725047554307,0.24,58898.0,58897.0,0.3608]
[1725047554504,0.15088,58898.0,58897.0,0.3608]
[1725047554703,0.39088,58898.0,58897.0,0.3608]
[1725047555097,0.976136,58898.0,58892.0,0.00017133]
[1725047555297,0.24,58893.0,58892.0,0.00017133]
[1725047556008,0.7494,58893.0,58892.0,0.00017133]
[1725047556507,0.24,58893.0,58892.0,0.00017133]
[1725047556696,0.004,58893.0,58892.0,0.00017133]
[1725047556898,0.004,58893.0,58892.0,0.08507633]
[1725047558512,0.004,58893.0,58892.0,0.00017133]
[1725047558708,0.004,58893.0,58892.0,0.08507633]
[1725047559411,0.24,58898.0,58892.0,0.00017133]
[1725047559608,0.24,58898.0,58897.0,0.445698]
[1725047560607,0.00025469,58903.0,58902.0,0.084891]
[1725047560803,0.00025469,58903.0,58902.0,0.445691]
[1725047561111,0.00025469,58903.0,58902.0,1.555011]
[1725047561802,0.00025469,58903.0,58902.0,0.955011]
[1725047562104,0.00025469,58903.0,58902.0,1.555011]
[1725047562606,0.01425469,58903.0,58902.0,1.555011]
[1725047563412,0.01425469,58903.0,58902.0,0.445691]
[1725047565006,0.01425469,58903.0,58902.0,1.639902]
[1725047565612,0.01425469,58903.0,58902.0,0.530582]
[1725047565810,0.01425469,58903.0,58902.0,1.039902]
[1725047566213,0.24,58919.0,58918.0,0.084867]
[1725047566405,0.24,58919.0,58918.0,0.3608]
[1725047566606,0.324866,58919.0,58918.0,0.3608]
[1725047566908,0.084867,58918.0,58917.0,0.084868]
[1725047567207,0.084867,58918.0,58912.0,0.3608]
[1725047567208,0.24,58918.0,58912.0,0.36105469]
[1725047567510,0.24,58913.0,58912.0,0.44593069]
[1725047568511,0.24,58917.0,58912.0,0.00025469]
[1725047568703,0.014,58918.0,58917.0,0.084869]
[1725047569105,0.15092,58919.0,58918.0,0.084867]
[1725047571508,0.00025469,58923.0,58918.0,0.084867]
[1725047571509,0.00025469,58923.0,58922.0,0.254586]
[1725047571706,0.00025469,58923.0,58922.0,0.855386]
[1725047572017,0.00025469,58923.0,58922.0,1.879684]
[1725047572211,0.00025469,58923.0,58922.0,1.639684]
[1725047572714,0.00025469,58923.0,58922.0,1.130524]
[1725047573030,0.00025469,58923.0,58922.0,0.530524]
[1725047573612,0.00025469,58923.0,58922.0,0.445662]
[1725047574511,0.24025469,58923.0,58922.0,0.084862]
[1725047574814,0.24025469,58923.0,58915.0,0.3608]
[1725047574815,0.32811469,58923.0,58915.0,0.3608]
[1725047575014,0.32811469,58923.0,58916.0,0.08487]
[1725047575015,0.24,58919.0,58916.0,0.08487]
[1725047575219,0.24,58919.0,58917.0,0.084868]
[1725047575715,0.24,58919.0,58918.0,0.084867]
[1725047576110,0.239,58919.0,58918.0,0.084867]
[1725047576306,0.24,58919.0,58915.0,0.3608]
[1725047577022,0.24,58919.0,58918.0,0.084867]
[1725047577915,0.013,58919.0,58918.0,0.084867]
[1725047578619,0.24,58922.0,58921.0,0.084863]
[1725047578813,0.24,58922.0,58921.0,0.083863]
[1725047579015,0.24,58922.0,58921.0,0.444663]
[1725047579732,0.24,58922.0,58918.0,0.001]
[1725047580020,0.24,58919.0,58918.0,0.085867]
[1725047580410,0.24,58919.0,58918.0,0.084867]
[1725047580615,0.248,58919.0,58918.0,0.085867]
[1725047580816,0.084875,58913.0,58912.0,0.00025469]
[1725047581020,0.7208,58913.0,58896.0,0.3286]
[1725047581228,0.24,58905.0,58896.0,0.3608]
[1725047581425,0.3598,58906.0,58905.0,0.084886]
[1725047581628,0.15092,58906.0,58905.0,0.084886]
[1725047582326,0.39092,58906.0,58905.0,0.084886]
[1725047582515,0.24,58906.0,58905.0,0.084886]
[1725047582723,0.39092,58906.0,58905.0,0.084886]
[1725047583025,0.39092,58906.0,58904.0,0.3608]
[1725047583228,0.24,58906.0,58904.0,0.3608]
[1725047583521,0.24801089,58910.0,58904.0,0.3608]
[1725047583723,0.00801089,58910.0,58909.0,0.08488]
[1725047583921,0.00025469,58911.0,58910.0,0.084879]
[1725047585320,0.014,58910.0,58909.0,0.3618]
[1725047585531,0.098879,58910.0,58909.0,0.3618]
[1725047585725,1.453819,58910.0,58909.0,0.001]
[1725047585927,0.084892,58901.0,58900.0,0.00017133]
[1725047586128,0.24,58901.0,58900.0,0.00017133]
[1725047587321,0.24,58901.0,58900.0,0.44586433]
[1725047587528,0.39296,58902.0,58900.0,0.44586433]
[1725047587731,0.39296,58902.0,58901.0,0.084892]
[1725047589132,0.39296,58902.0,58894.0,0.3286]
[1725047589133,0.084906,58892.0,58887.0,0.3608]
[1725047589333,0.084906,58892.0,58880.0,0.3608]
[1725047589334,0.24,58888.0,58880.0,0.3608]
[1725047589631,0.24,58888.0,58885.0,0.3608]
[1725047590023,0.24,58888.0,58878.0,0.0601]
[1725047590224,0.24,58888.0,58879.0,0.3608]
[1725047590836,0.24,58888.0,58885.0,0.3608]
[1725047591134,0.153,58887.0,58886.0,0.084914]
[1725047591824,0.153,58887.0,58879.0,0.3608]
[1725047592023,0.24,58883.0,58879.0,0.3608]
[1725047592844,0.001,58887.0,58879.0,0.7216]
[1725047593144,0.001,58887.0,58886.0,0.084914]
[1725047593326,0.241,58887.0,58882.0,0.084918]
[1725047593631,0.24,58883.0,58882.0,0.084918]
[1725047593826,0.24,58886.0,58883.0,0.084917]
[1725047594032,0.153,58885.0,58880.0,0.3608]
[1725047594229,0.153,58885.0,58884.0,0.084916]
[1725047595327,0.153,58885.0,58880.0,0.3608]
[1725047595630,0.153,58885.0,58881.0,0.084921]
[1725047595836,0.153,58885.0,58882.0,0.084919]
[1725047596029,0.393,58886.0,58884.0,0.084916]
[1725047596429,0.24,58886.0,58884.0,0.084916]
[1725047596841,0.153,58885.0,58884.0,0.084916]
[1725047597143,0.153,58885.0,58880.0,0.3608]
[1725047597144,0.238916,58885.0,58881.0,0.08492]
[1725047597341,0.24,58882.0,58881.0,0.08492]
[1725047598128,0.2,58882.0,58881.0,0.08492]
[1725047600029,0.2,58882.0,58878.0,0.0601]
[1725047600238,0.3608,58879.0,58878.0,0.0601]
[1725047600534,0.3608,58879.0,58862.0,0.2]
[1725047600535,0.084956,58857.0,58848.0,0.084968]
[1725047600737,0.2,58855.0,58850.0,0.0649]
[1725047600931,0.353,58855.0,58836.0,0.084985]
[1725047601132,0.353,58855.0,58842.0,0.0649]
[1725047601133,0.5608,58855.0,58842.0,0.0649]
[1725047601335,0.2,58848.0,58842.0,0.0649]
[1725047601531,0.353,58848.0,58845.0,0.084973]
[1725047601731,0.353,58848.0,58842.0,0.0649]
[1725047602141,0.153,58848.0,58843.0,0.084975]
[1725047602443,0.2,58844.0,58843.0,0.084975]
[1725047602647,0.001,58855.0,58846.0,0.08497]
[1725047602844,0.001,58855.0,58845.0,0.3608]
[1725047602845,0.51384,58854.0,58845.0,0.3608]
[1725047603136,0.084967,58849.0,58845.0,0.3608]
[1725047603644,0.001,58848.0,58845.0,0.3608]
[1725047603828,0.2,58846.0,58845.0,0.3608]
[1725047604240,0.24,58846.0,58845.0,0.3608]
[1725047605439,0.15404,58846.0,58845.0,0.445773]
[1725047606146,0.39404,58846.0,58845.0,0.3608]
[1725047606635,0.39408,58846.0,58845.0,0.3608]
[1725047608051,0.241,58846.0,58845.0,0.3608]
[1725047608249,0.39408,58846.0,58845.0,0.445773]
[1725047609238,0.001,58846.0,58845.0,0.445773]
[1725047609439,0.15408,58846.0,58845.0,0.445773]
[1725047610344,0.15408,58846.0,58845.0,0.3608]
[1725047610848,0.15408,58846.0,58845.0,0.445773]
[1725047611351,0.15408,58846.0,58845.0,0.3608]
[1725047611547,0.15308,58846.0,58845.0,0.3608]
[1725047612845,0.15308,58846.0,58845.0,0.445773]
[1725047613657,0.23706082,58847.0,58846.0,0.084971]
[1725047613854,0.39014082,58847.0,58846.0,0.084971]
[1725047615649,0.23706082,58847.0,58846.0,0.084971]
[1725047615952,0.39186082,58847.0,58846.0,0.084971]
[1725047619743,0.15484,58847.0,58846.0,0.084971]
[1725047619949,0.15484,58847.0,58846.0,0.169942]
[1725047620255,0.35231474,58847.0,58845.0,0.3608]
[1725047620457,0.084971,58846.0,58845.0,0.3608]
[1725047620761,0.324971,58846.0,58845.0,0.3608]
[1725047622243,0.24,58846.0,58845.0,0.3608]
[1725047622656,0.24,58846.0,58845.0,0.3618]
[1725047623155,1e-06,58847.0,58846.0,0.764713]
[1725047623348,1e-06,58847.0,58846.0,0.803342]
[1725047623544,1e-06,58847.0,58846.0,0.718371]
[1725047623748,0.00819263,58856.0,58855.0,0.084958]
[1725047625151,0.00819263,58856.0,58853.0,0.084961]
[1725047625347,0.24,58855.0,58853.0,0.084961]
[1725047625746,0.24,58858.0,58853.0,0.084961]
[1725047625951,0.4953,58861.0,58853.0,0.084961]
[1725047626151,0.24,58858.0,58853.0,0.084961]
[1725047626359,0.24,58858.0,58857.0,0.3608]
[1725047626558,0.24,58862.0,58857.0,0.3608]
[1725047626862,0.15384,58858.0,58857.0,0.445755]
[1725047627357,0.58747992,58865.0,58857.0,0.445755]
[1725047627358,0.00253492,58865.0,58864.0,0.16989]
[1725047627563,0.00025491,58865.0,58864.0,0.53069]
[1725047627765,0.00025491,58865.0,58864.0,0.445745]
[1725047628057,0.00025491,58865.0,58864.0,0.645745]
[1725047629460,0.20925491,58865.0,58864.0,0.445745]
[1725047629649,0.20925491,58865.0,58857.0,0.3608]
[1725047629849,0.20925491,58865.0,58862.0,0.084948]
[1725047630057,0.00925491,58865.0,58862.0,0.445748]
[1725047630246,0.00925491,58865.0,58864.0,0.084945]
[1725047631755,0.00125491,58865.0,58864.0,0.084945]
[1725047632363,9.1e-07,58865.0,58864.0,1.27953]
[1725047632567,9.1e-07,58865.0,58864.0,1.44942]
[1725047632752,0.238715,58885.0,58884.0,0.084916]
[1725047632949,0.1538,58885.0,58884.0,0.445716]
[1725047633160,0.3608,58891.0,58884.0,0.3608]
[1725047633464,0.0078388,58891.0,58890.0,0.3608]
[1725047633765,0.00025491,58893.0,58891.0,0.084906]
[1725047633958,0.00025491,58893.0,58890.0,0.3608]
[1725047633959,0.00025491,58893.0,58892.0,0.084905]
[1725047635559,0.00025491,58893.0,58892.0,0.083905]
[1725047636259,0.00625491,58893.0,58892.0,0.083905]
[1725047636854,0.00625491,58893.0,58892.0,0.684705]
[1725047637064,0.254916,58912.0,58893.0,0.084902]
[1725047637261,0.254916,58912.0,58909.0,0.3608]
[1725047637864,0.084878,58911.0,58903.0,0.084889]
[1725047638056,0.24,58908.0,58903.0,0.084889]
[1725047638257,0.24,58908.0,58904.0,0.084888]
[1725047638459,0.24,58908.0,58905.0,0.084886]
[1725047638665,0.3608,58906.0,58905.0,0.084886]
[1725047638970,0.24,58904.0,58901.0,0.00025467]
[1725047639263,0.13060374,58903.0,58893.0,0.24]
[1725047639467,0.3608,58894.0,58891.0,0.24]
[1725047639669,0.3608,58894.0,58893.0,0.084903]
[1725047639855,0.4217143,58894.0,58893.0,0.084903]
[1725047640262,1.5311143,58894.0,58888.0,0.00025467]
[1725047640584,1.5311143,58894.0,58861.0,0.3608]
[1725047640585,0.084935,58871.0,58863.0,0.084946]
[1725047640865,0.3608,58864.0,58861.0,0.06785467]
[1725047641067,0.3608,58864.0,58863.0,0.084947]
[1725047641284,0.51456,58864.0,58863.0,0.084947]
[1725047641668,0.51456,58864.0,58863.0,0.094947]
[1725047642665,0.52256,58864.0,58863.0,0.085947]
[1725047643071,0.3688,58864.0,58863.0,0.085947]
[1725047643373,0.52256,58864.0,58863.0,0.085947]
[1725047643573,0.52256,58864.0,58863.0,0.001]
[1725047644274,0.88336,58864.0,58863.0,0.001]
[1725047644463,0.95305339,58864.0,58863.0,0.001]
[1725047644677,0.79929339,58864.0,58863.0,0.001]
[1725047644976,0.79929339,58864.0,58853.0,0.24]
[1725047644977,0.95297339,58864.0,58857.0,0.06208421]
[1725047645167,0.3608,58858.0,58857.0,0.06208421]
[1725047645368,0.43049339,58858.0,58857.0,0.06208421]
[1725047645671,0.58417339,58858.0,58857.0,0.06208421]
[1725047645872,0.58417339,58858.0,58850.0,0.0691]
[1725047646072,0.3608,58851.0,58850.0,0.154065]
[1725047646272,0.43049339,58851.0,58850.0,0.154065]
[1725047646578,0.3608,58851.0,58850.0,0.154065]
[1725047646766,0.3608,58851.0,58848.0,0.00025467]
[1725047646972,0.3608,58849.0,58848.0,0.00025467]
[1725047647270,0.445767,58849.0,58848.0,0.00025467]
[1725047648372,0.438767,58849.0,58848.0,0.00025467]
[1725047648670,1.798567,58849.0,58848.0,0.00025467]
[1725047648880,1.788567,58849.0,58848.0,0.00025467]
[1725047649263,1.788567,58849.0,58833.0,0.5387]
[1725047649264,0.084981,58840.0,58833.0,0.5387]
[1725047649464,0.7216,58836.0,58829.0,0.0665]
[1725047649666,0.3548,58830.0,58829.0,0.661456]
[1725047649871,0.3548,58830.0,58829.0,0.151496]
[1725047650177,0.15368,58837.0,58836.0,0.084986]
[1725047650470,0.00025489,58842.0,58841.0,0.169958]
[1725047650669,0.00025489,58842.0,58841.0,0.685779]
[1725047650883,0.001,58849.0,58848.0,0.084968]
[1725047651070,0.001,58849.0,58848.0,0.594768]
[1725047651380,0.15372,58855.0,58852.0,0.084963]
[1725047651567,0.15372,58855.0,58853.0,0.084961]
[1725047651768,0.15372,58855.0,58854.0,0.08496]
[1725047651968,0.3608,58857.0,58848.0,0.00025489]
[1725047652176,0.3608,58857.0,58856.0,0.084957]
[1725047652378,0.00025489,58860.0,58859.0,0.084953]
[1725047652581,0.00025489,58860.0,58856.0,0.084957]
[1725047652772,0.32520689,58860.0,58848.0,0.00025489]
[1725047652966,0.011,58855.0,58848.0,0.00025489]
[1725047653279,0.011,58855.0,58854.0,0.08496]